bitfinex-derivatives/quotes_BTCF0:USTF0_20240825
["timestamp","ask_amount","ask_price","bid_price","bid_amount"]
[1724618389810,0.22344913,64201.0,64200.0,0.0014]
[1724618392597,0.31344913,64201.0,64200.0,0.0014]
[1724618392808,0.27532678,64201.0,64200.0,0.0014]
[1724618395201,0.31344924,64201.0,64200.0,0.0014]
[1724618395506,0.31344884,64201.0,64200.0,0.0014]
[1724618395700,0.27532678,64201.0,64200.0,0.0014]
[1724618395902,0.31344921,64201.0,64200.0,0.0014]
[1724618396094,0.27532678,64201.0,64200.0,0.0014]
[1724618396299,0.31344964,64201.0,64200.0,0.0014]
[1724618396904,0.24525562,64201.0,64200.0,0.06370839]
[1724618397207,0.24525562,64201.0,64200.0,0.0014]
[1724618404809,0.45353019,64201.0,64200.0,0.0014]
[1724618406215,0.36353019,64201.0,64200.0,0.0014]
[1724618406512,0.40363019,64201.0,64200.0,0.0014]
[1724618411711,0.40363017,64201.0,64200.0,0.0014]
[1724618411906,0.19535562,64201.0,64200.0,0.0014]
[1724618418817,0.26355035,64201.0,64200.0,0.0014]
[1724618420516,0.31133466,64201.0,64200.0,0.0014]
[1724618420719,0.26355035,64201.0,64200.0,0.0014]
[1724618423322,0.31133466,64201.0,64200.0,0.0014]
[1724618423519,0.26355035,64201.0,64200.0,0.0014]
[1724618426517,0.26355049,64201.0,64200.0,0.0014]
[1724618426921,0.28873827,64201.0,64200.0,0.04812973]
[1724618428230,0.19535562,64201.0,64200.0,0.04812973]
[1724618428419,0.19535562,64201.0,64200.0,0.0014]
[1724618429431,0.10535562,64201.0,64200.0,0.0014]
[1724618429828,0.10535562,64201.0,64200.0,0.06370839]
[1724618430126,0.10535562,64201.0,64200.0,0.0014]
[1724618430523,0.10535562,64201.0,64200.0,0.06370839]
[1724618430719,0.10535562,64201.0,64200.0,0.0014]
[1724618431133,0.10535562,64201.0,64200.0,0.06370839]
[1724618431831,0.10535562,64201.0,64200.0,0.0014]
[1724618432126,0.10535562,64201.0,64200.0,0.06370839]
[1724618432327,0.10535562,64201.0,64200.0,0.14155039]
[1724618432832,0.10535562,64201.0,64200.0,0.079242]
[1724618433225,0.10535562,64201.0,64200.0,0.14155039]
[1724618433425,0.10535562,64201.0,64200.0,0.079242]
[1724618433625,0.10535562,64201.0,64200.0,0.14155039]
[1724618434020,0.10535562,64201.0,64200.0,0.12595405]
[1724618434221,0.10535562,64201.0,64200.0,0.079242]
[1724618434424,0.10535562,64201.0,64200.0,0.12595405]
[1724618434624,0.10535562,64201.0,64200.0,0.21595405]
[1724618435025,0.09338265,64207.0,64200.0,0.65098839]
[1724618435231,0.09338265,64208.0,64206.0,0.09]
[1724618435829,0.10894642,64218.0,64207.0,0.3608]
[1724618436026,0.09332834,64217.0,64214.0,0.3608]
[1724618436227,0.00023368,64219.0,64218.0,0.07782]
[1724618436433,0.0264331,64219.0,64218.0,0.07782]
[1724618436628,0.00023368,64219.0,64218.0,0.07782]
[1724618437049,0.00023368,64219.0,64218.0,0.07822]
[1724618437847,0.00023368,64219.0,64218.0,0.07922]
[1724618438146,0.00023368,64219.0,64218.0,0.08022]
[1724618438341,0.00023368,64219.0,64218.0,0.12692779]
[1724618439144,0.00023368,64219.0,64218.0,0.54738]
[1724618439348,0.00023368,64219.0,64218.0,0.94738]
[1724618439546,0.00023368,64219.0,64218.0,0.99608]
[1724618439847,0.00023368,64219.0,64218.0,1.06278779]
[1724618440146,0.00023368,64219.0,64218.0,1.01608]
[1724618440348,0.004,64222.0,64221.0,0.077817]
[1724618440550,0.004,64222.0,64221.0,0.528617]
[1724618441046,0.004,64222.0,64221.0,0.529017]
[1724618441451,0.004,64222.0,64221.0,0.530017]
[1724618441748,0.004,64222.0,64221.0,0.531017]
[1724618442044,0.03405787,64222.0,64221.0,0.531017]
[1724618443343,0.11241504,64222.0,64221.0,0.531017]
[1724618443543,0.14247291,64222.0,64221.0,0.531017]
[1724618444744,0.004,64222.0,64221.0,0.531017]
[1724618444943,0.03405844,64222.0,64221.0,0.531017]
[1724618445142,0.11238491,64222.0,64221.0,0.531017]
[1724618445345,0.14244335,64222.0,64221.0,0.531017]
[1724618446042,0.14242836,64222.0,64221.0,0.531017]
[1724618446743,0.07216468,64222.0,64221.0,0.531017]
[1724618446944,0.03405844,64222.0,64221.0,0.531017]
[1724618447246,0.1423993,64222.0,64221.0,0.531017]
[1724618447448,0.03405844,64222.0,64221.0,0.531017]
[1724618448949,0.004,64222.0,64221.0,0.531017]
[1724618452248,0.004,64222.0,64221.0,0.170217]
[1724618454749,0.081816,64222.0,64221.0,0.080217]
[1724618456452,0.10845065,64222.0,64221.0,0.080217]
[1724618460361,0.10845065,64222.0,64221.0,0.0024]
[1724618464160,0.23232476,64222.0,64221.0,0.0024]
[1724618464355,0.26238506,64222.0,64221.0,0.0024]
[1724618464558,0.30049364,64222.0,64221.0,0.0024]
[1724618465162,0.17661953,64222.0,64221.0,0.0024]
[1724618471863,0.27858493,64222.0,64221.0,0.0024]
[1724618472063,0.2017765,64222.0,64221.0,0.0024]
[1724618473162,0.10845065,64222.0,64221.0,0.0024]
[1724618473464,0.20177904,64222.0,64221.0,0.0024]
[1724618476775,0.10845065,64222.0,64221.0,0.0024]
[1724618477471,0.20178879,64222.0,64221.0,0.0024]
[1724618478171,0.10845065,64222.0,64221.0,0.0024]
[1724618479070,0.13851083,64222.0,64221.0,0.0024]
[1724618479266,0.30976664,64222.0,64221.0,0.0024]
[1724618479875,0.34787507,64222.0,64221.0,0.0024]
[1724618482064,0.17661926,64222.0,64221.0,0.0024]
[1724618482269,0.30968341,64222.0,64221.0,0.0024]
[1724618482580,0.17661926,64222.0,64221.0,0.0024]
[1724618483471,0.34782852,64222.0,64221.0,0.0024]
[1724618483866,0.34782852,64222.0,64211.0,0.09]
[1724618483867,0.077828,64212.0,64211.0,0.09]
[1724618484087,0.077828,64212.0,64209.0,0.3608]
[1724618484088,0.03006018,64212.0,64209.0,0.3608]
[1724618484270,0.1400956,64212.0,64211.0,0.09]
[1724618484464,0.06816861,64212.0,64211.0,0.09]
[1724618484972,0.03006018,64212.0,64211.0,0.09]
[1724618485177,0.03006018,64212.0,64211.0,0.091]
[1724618485473,0.03006018,64212.0,64211.0,0.188829]
[1724618485675,0.14005096,64212.0,64211.0,0.188829]
[1724618485872,0.17011114,64212.0,64211.0,0.188829]
[1724618487068,0.077827,64213.0,64211.0,0.188829]
[1724618487469,0.002,64212.0,64211.0,0.189829]
[1724618488072,0.002,64212.0,64211.0,0.188829]
[1724618488275,0.002,64212.0,64211.0,0.189829]
[1724618488470,0.002,64213.0,64212.0,0.077828]
[1724618488676,0.004,64213.0,64212.0,0.087828]
[1724618488875,0.002,64213.0,64212.0,0.087828]
[1724618490184,0.077821,64218.0,64212.0,0.087828]
[1724618490185,0.17117595,64218.0,64216.0,0.077823]
[1724618490477,0.077821,64218.0,64217.0,0.09]
[1724618491778,0.17117595,64218.0,64217.0,0.09]
[1724618491973,0.078821,64218.0,64217.0,0.09]
[1724618492179,0.17317595,64218.0,64217.0,0.091]
[1724618493583,0.17317595,64218.0,64217.0,0.092]
[1724618494087,0.10988259,64218.0,64217.0,0.092]
[1724618494483,0.10988259,64218.0,64217.0,0.169822]
[1724618496976,0.077829,64212.0,64208.0,0.077832]
[1724618497175,0.54411743,64209.0,64208.0,0.077832]
[1724618497382,0.4508,64209.0,64208.0,0.077832]
[1724618497877,0.4512,64209.0,64208.0,0.077832]
[1724618498079,0.4512,64209.0,64208.0,0.079832]
[1724618498273,0.3612,64209.0,64208.0,0.079832]
[1724618498479,0.45444785,64209.0,64208.0,0.079832]
[1724618498677,0.45544785,64209.0,64208.0,0.079832]
[1724618499087,0.45644785,64209.0,64208.0,0.079832]
[1724618499487,0.3632,64209.0,64208.0,0.079832]
[1724618501882,0.0024,64209.0,64208.0,0.079832]
[1724618508583,0.080232,64209.0,64208.0,0.079832]
[1724618508787,0.080232,64209.0,64208.0,0.12645581]
[1724618509182,0.080232,64209.0,64208.0,0.079832]
[1724618514095,0.17344555,64209.0,64208.0,0.079832]
[1724618515908,0.080232,64209.0,64208.0,0.079832]
[1724618516500,0.17344555,64209.0,64208.0,0.079832]
[1724618516703,0.080232,64209.0,64208.0,0.079832]
[1724618520122,0.080232,64209.0,64208.0,0.1417754]
[1724618521014,0.080232,64209.0,64208.0,0.1517754]
[1724618522007,0.0024,64209.0,64208.0,0.1517754]
[1724618522413,0.3608,64216.0,64214.0,0.077826]
[1724618522609,0.3608,64216.0,64214.0,0.177826]
[1724618522813,0.3608,64216.0,64214.0,0.167826]
[1724618523705,0.00223368,64215.0,64214.0,0.23103388]
[1724618524114,0.00323368,64215.0,64214.0,0.169826]
[1724618527118,0.00323368,64215.0,64214.0,0.179826]
[1724618529916,0.00323368,64215.0,64214.0,0.540626]
[1724618532616,0.11207517,64215.0,64214.0,0.540626]
[1724618532916,0.00323368,64215.0,64214.0,0.540626]
[1724618533117,0.11206685,64215.0,64214.0,0.540626]
[1724618533615,0.07140571,64215.0,64214.0,0.540626]
[1724618533817,0.03329539,64215.0,64214.0,0.540626]
[1724618538724,0.00323368,64215.0,64214.0,0.540626]
[1724618539317,0.00323368,64215.0,64214.0,1.007826]
[1724618539518,0.0044,64222.0,64221.0,0.077817]
[1724618539716,0.0044,64222.0,64221.0,0.57523513]
[1724618540118,0.0044,64222.0,64221.0,0.528617]
[1724618540317,0.0044,64222.0,64221.0,0.538617]
[1724618541021,0.0054,64222.0,64221.0,0.539617]
[1724618541418,0.0054,64222.0,64221.0,0.540617]
[1724618545121,0.0054,64222.0,64221.0,0.56766097]
[1724618545627,0.0044,64222.0,64221.0,0.56766097]
[1724618546223,0.00023368,64228.0,64227.0,0.07781]
[1724618546425,0.00023368,64228.0,64227.0,0.16781]
[1724618546627,0.0456364,64228.0,64227.0,0.16781]
[1724618548130,0.0456364,64228.0,64227.0,0.16881]
[1724618548527,0.0456364,64228.0,64227.0,0.16981]
[1724618548727,0.0456364,64228.0,64227.0,0.16881]
[1724618549128,0.0456364,64228.0,64227.0,0.10981]
[1724618549425,0.0456364,64228.0,64227.0,0.19981]
[1724618549822,0.0456364,64228.0,64227.0,0.16981]
[1724618550932,0.0456364,64228.0,64227.0,0.07981]
[1724618551326,0.0456364,64228.0,64227.0,0.16981]
[1724618554325,0.17010967,64228.0,64227.0,0.16981]
[1724618554529,0.20016586,64228.0,64227.0,0.17021]
[1724618554832,0.07569259,64228.0,64227.0,0.17021]
[1724618555133,0.0456364,64228.0,64227.0,0.18021]
[1724618557327,0.13877338,64228.0,64227.0,0.18021]
[1724618557526,0.13877411,64228.0,64227.0,0.18021]
[1724618557746,0.0456364,64228.0,64227.0,0.18021]
[1724618558128,0.0456364,64228.0,64227.0,0.64729]
[1724618558629,0.0456364,64228.0,64227.0,0.74329]
[1724618558829,0.0945,64241.0,64227.0,0.27621]
[1724618559033,0.03005124,64240.0,64236.0,0.3608]
[1724618559228,0.03005124,64239.0,64236.0,0.3608]
[1724618559427,0.03005124,64238.0,64237.0,0.077798]
[1724618561325,0.03005124,64238.0,64237.0,0.078798]
[1724618561832,0.03005124,64238.0,64237.0,0.079798]
[1724618562223,0.0945,64241.0,64237.0,0.002]
[1724618562429,0.0945,64241.0,64240.0,0.09]
[1724618563135,0.0945,64241.0,64240.0,0.0904]
[1724618564436,0.0945,64241.0,64240.0,0.0914]
[1724618564935,0.0945,64241.0,64240.0,0.0924]
[1724618565543,0.0945,64241.0,64240.0,0.170194]
[1724618568247,0.0482,64241.0,64240.0,0.170194]
[1724618569333,0.07824936,64241.0,64240.0,0.170194]
[1724618569638,0.11634407,64241.0,64240.0,0.170194]
[1724618570026,0.07824936,64241.0,64240.0,0.170194]
[1724618570637,0.07824936,64241.0,64240.0,0.169194]
[1724618570838,0.07824936,64241.0,64240.0,0.170194]
[1724618574640,0.11634407,64241.0,64240.0,0.170194]
[1724618574839,0.18825096,64241.0,64240.0,0.170194]
[1724618575041,0.21830032,64241.0,64240.0,0.170194]
[1724618575646,0.21829961,64241.0,64240.0,0.170194]
[1724618577447,0.0482,64241.0,64240.0,0.170194]
[1724618577647,0.1382,64241.0,64240.0,0.0024]
[1724618577844,0.215993,64241.0,64240.0,0.0024]
[1724618578644,0.125993,64241.0,64240.0,0.0024]
[1724618580541,0.215993,64241.0,64240.0,0.0024]
[1724618583250,0.30915591,64241.0,64240.0,0.0024]
[1724618583948,0.21915591,64241.0,64240.0,0.0024]
[1724618584140,0.125993,64241.0,64240.0,0.0024]
[1724618584344,0.15604388,64241.0,64240.0,0.0024]
[1724618584543,0.19414052,64241.0,64240.0,0.0024]
[1724618589444,0.14594052,64241.0,64240.0,0.0024]
[1724618590163,0.10784388,64241.0,64240.0,0.0024]
[1724618592466,0.077793,64241.0,64240.0,0.0024]
[1724618598859,0.077793,64241.0,64240.0,0.0014]
[1724618599054,0.077793,64241.0,64240.0,0.0024]
[1724618599459,0.14594039,64241.0,64240.0,0.0024]
[1724618599653,0.10784382,64241.0,64240.0,0.0024]
[1724618603267,0.14594039,64241.0,64240.0,0.0024]
[1724618605259,0.14594039,64241.0,64240.0,0.0014]
[1724618605467,0.14594039,64241.0,64240.0,0.0024]
[1724618606359,0.31714965,64241.0,64240.0,0.0024]
[1724618607465,0.24900226,64241.0,64240.0,0.0024]
[1724618607665,0.077793,64241.0,64240.0,0.0024]
[1724618608063,0.077793,64241.0,64240.0,0.0014]
[1724618608270,0.077793,64241.0,64240.0,0.0004]
[1724618608472,0.077793,64241.0,64240.0,0.0014]
[1724618611179,0.17119757,64241.0,64240.0,0.0014]
[1724618611577,0.077793,64241.0,64240.0,0.0014]
[1724618612670,0.077793,64241.0,64240.0,0.04806834]
[1724618613067,0.077793,64241.0,64240.0,0.0014]
[1724618613261,0.077793,64241.0,64240.0,0.04806758]
[1724618614070,0.077793,64241.0,64240.0,0.0014]
[1724618616273,0.17119757,64241.0,64240.0,0.0014]
[1724618622376,0.14594033,64241.0,64240.0,0.0014]
[1724618625277,0.077793,64241.0,64240.0,0.0014]
[1724618626180,0.14594034,64241.0,64240.0,0.0014]
[1724618627180,0.1078438,64241.0,64240.0,0.0014]
[1724618627382,0.077793,64241.0,64240.0,0.0014]
[1724618627577,0.14594034,64241.0,64240.0,0.0014]
[1724618629080,0.23594034,64241.0,64240.0,0.0014]
[1724618629281,1.15715394,64241.0,64229.0,0.0499]
[1724618629478,0.3608,64235.0,64231.0,0.09]
[1724618629677,0.3608,64235.0,64231.0,0.16742926]
[1724618629873,0.3608,64235.0,64234.0,0.06246787]
[1724618630078,0.4386,64235.0,64234.0,0.06246787]
[1724618630480,0.4386,64235.0,64234.0,0.00023368]
[1724618631974,0.0778,64235.0,64234.0,0.00023368]
[1724618635582,0.10467215,64235.0,64234.0,0.04685695]
[1724618636677,0.10467215,64235.0,64234.0,0.00023368]
[1724618637088,0.10467215,64235.0,64234.0,0.04685593]
[1724618638091,0.46547215,64235.0,64234.0,0.04685593]
[1724618638585,0.46547215,64235.0,64234.0,0.00023368]
[1724618640087,0.10467215,64235.0,64234.0,0.00023368]
[1724618640275,0.46547215,64235.0,64234.0,0.00023368]
[1724618642490,0.46547215,64235.0,64234.0,0.04685593]
[1724618642689,0.10467215,64235.0,64234.0,0.04685593]
[1724618643986,0.10467215,64235.0,64234.0,0.00023368]
[1724618652300,0.10467215,64235.0,64234.0,0.04685593]
[1724618652507,0.10467215,64235.0,64234.0,0.00023368]
[1724618654305,0.10467215,64235.0,64234.0,0.04685593]
[1724618654706,0.10467215,64235.0,64234.0,0.00023368]
[1724618655613,0.10467215,64235.0,64234.0,0.04685593]
[1724618655808,0.10467215,64235.0,64234.0,0.00023368]
[1724618656605,0.10467215,64235.0,64234.0,0.04688612]
[1724618656904,0.10467215,64235.0,64234.0,0.04688691]
[1724618657106,0.46547215,64235.0,64234.0,0.04688691]
[1724618657307,0.46547215,64235.0,64234.0,0.00023368]
[1724618659816,0.67367936,64235.0,64234.0,0.00023368]
[1724618661808,0.31287936,64235.0,64234.0,0.00023368]
[1724618663313,0.17282853,64235.0,64234.0,0.00023368]
[1724618663916,0.17282792,64235.0,64234.0,0.00023368]
[1724618666824,0.10467215,64235.0,64234.0,0.00023368]
[1724618674922,0.13472671,64235.0,64234.0,0.00023368]
[1724618675124,0.17282801,64235.0,64234.0,0.00023368]
[1724618675426,0.31287884,64235.0,64234.0,0.00023368]
[1724618679926,0.17282801,64235.0,64234.0,0.00023368]
[1724618681324,0.27483201,64235.0,64234.0,0.00023368]
[1724618681525,0.31293331,64235.0,64234.0,0.00023368]
[1724618681726,0.10467215,64235.0,64234.0,0.00023368]
[1724618685837,0.10467215,64235.0,64234.0,0.06249712]
[1724618686043,0.10467215,64235.0,64234.0,0.06249676]
[1724618686225,0.10467215,64235.0,64234.0,0.00023368]
[1724618686835,0.10467215,64235.0,64234.0,0.06249534]
[1724618688140,0.10467215,64235.0,64234.0,0.00023368]
[1724618694637,0.1728312,64235.0,64234.0,0.00023368]
[1724618695937,0.10467215,64235.0,64234.0,0.00023368]
[1724618700242,0.46547215,64235.0,64234.0,0.00023368]
[1724618703144,0.55547215,64235.0,64234.0,0.00023368]
[1724618705139,0.62363187,64235.0,64234.0,0.00023368]
[1724618705541,0.26283187,64235.0,64234.0,0.00023368]
[1724618705738,0.62363187,64235.0,64234.0,0.00023368]
[1724618707647,0.62363187,64235.0,64234.0,0.07803468]
[1724618707847,0.59675972,64235.0,64234.0,0.07803468]
[1724618708353,0.50675972,64235.0,64234.0,0.07803468]
[1724618708751,0.10785547,64235.0,64234.0,0.07803468]
[1724618710866,0.03005547,64235.0,64234.0,0.18803468]
[1724618711252,0.0263812,64237.0,64236.0,0.077799]
[1724618711449,0.03005111,64237.0,64234.0,0.09023368]
[1724618711652,0.09332722,64236.0,64235.0,0.1266]
[1724618711851,0.09332722,64237.0,64236.0,0.077799]
[1724618712052,0.09332722,64237.0,64236.0,0.277799]
[1724618712255,0.09332722,64239.0,64236.0,0.2]
[1724618712556,0.09332722,64242.0,64240.0,0.077794]
[1724618712863,0.09332722,64242.0,64240.0,0.097794]
[1724618713254,0.00015576,64244.0,64240.0,0.098194]
[1724618713456,0.00015576,64244.0,64240.0,0.078194]
[1724618713860,0.0014,64241.0,64240.0,0.079194]
[1724618715758,0.0014,64241.0,64240.0,0.14129701]
[1724618719263,0.0014,64241.0,64240.0,0.079194]
[1724618719458,0.0014,64241.0,64240.0,0.14129701]
[1724618719655,0.0014,64241.0,64240.0,0.079194]
[1724618720163,0.0014,64241.0,64240.0,0.14129701]
[1724618720363,0.11035013,64241.0,64240.0,0.079194]
[1724618720862,0.11035013,64241.0,64240.0,0.089194]
[1724618721251,0.14039886,64241.0,64240.0,0.089194]
[1724618721661,0.03144873,64241.0,64240.0,0.089194]
[1724618721862,0.11007712,64241.0,64240.0,0.089194]
[1724618722458,0.03144873,64241.0,64240.0,0.089194]
[1724618722657,0.11007278,64241.0,64240.0,0.089194]
[1724618723163,0.03144873,64241.0,64240.0,0.079194]
[1724618724059,0.0014,64241.0,64240.0,0.079194]
[1724618724264,0.1100681,64241.0,64240.0,0.079194]
[1724618724462,0.14011683,64241.0,64240.0,0.079194]
[1724618725666,0.069543,64241.0,64240.0,0.079194]
[1724618725873,0.03144873,64241.0,64240.0,0.079194]
[1724618727361,0.069543,64241.0,64240.0,0.079194]
[1724618727662,0.03144873,64241.0,64240.0,0.079194]
[1724618727874,0.12560165,64241.0,64240.0,0.079194]
[1724618728064,0.15565312,64241.0,64240.0,0.079194]
[1724618728258,0.0014,64241.0,64240.0,0.079194]
[1724618728564,0.0014,64241.0,64240.0,0.12575415]
[1724618728868,0.0014,64241.0,64240.0,0.49655415]
[1724618730063,0.0014,64241.0,64240.0,0.13575415]
[1724618730271,0.0014,64241.0,64240.0,0.49655415]
[1724618730957,0.0014,64241.0,64240.0,0.13575415]
[1724618731270,0.0014,64241.0,64240.0,0.49655415]
[1724618731467,0.0014,64241.0,64240.0,0.449994]
[1724618732166,0.0014,64241.0,64240.0,0.49655893]
[1724618732364,0.0014,64241.0,64240.0,0.449994]
[1724618733672,0.0014,64241.0,64240.0,0.4965703]
[1724618734260,0.0014,64241.0,64240.0,0.449994]
[1724618736168,0.0014,64241.0,64240.0,0.439994]
[1724618739465,0.0014,64241.0,64240.0,0.529994]
[1724618740563,0.0014,64241.0,64240.0,0.57657771]
[1724618741471,0.0014,64241.0,64240.0,0.529994]
[1724618741675,0.0014,64241.0,64240.0,0.539994]
[1724618742274,0.0014,64241.0,64240.0,0.179194]
[1724618742970,0.0014,64241.0,64240.0,0.539994]
[1724618743377,0.03144892,64241.0,64240.0,0.539994]
[1724618744365,0.03144892,64241.0,64240.0,0.179194]
[1724618744566,0.03144892,64241.0,64240.0,0.539994]
[1724618744975,0.03144892,64241.0,64240.0,0.179194]
[1724618745180,0.03144892,64241.0,64240.0,0.539994]
[1724618745572,0.14149466,64241.0,64240.0,0.539994]
[1724618745772,0.17154358,64241.0,64240.0,0.539994]
[1724618746480,0.06954307,64241.0,64240.0,0.539994]
[1724618746673,0.03144892,64241.0,64240.0,0.539994]
[1724618747480,0.06954307,64241.0,64240.0,0.539994]
[1724618747676,0.03144892,64241.0,64240.0,0.539994]
[1724618748674,0.12590526,64241.0,64240.0,0.539994]
[1724618749180,0.15595418,64241.0,64240.0,0.539994]
[1724618749376,0.06954307,64241.0,64240.0,0.539994]
[1724618749779,0.03144892,64241.0,64240.0,0.539994]
[1724618749976,0.03144892,64241.0,64240.0,0.588894]
[1724618750575,0.0014,64241.0,64240.0,0.588894]
[1724618752283,0.00015576,64244.0,64240.0,0.588894]
[1724618752284,0.00015576,64244.0,64243.0,0.077791]
[1724618752472,0.00015576,64244.0,64243.0,0.638591]
[1724618753581,0.00015576,64244.0,64243.0,0.640591]
[1724618754179,0.00015576,64244.0,64243.0,0.7027558]
[1724618754880,0.00015576,64244.0,64243.0,1.0675558]
[1724618756286,0.00015576,64244.0,64243.0,1.005391]
[1724618756492,0.00015576,64244.0,64243.0,0.444591]
[1724618756679,0.00015576,64244.0,64243.0,0.534591]
[1724618756879,0.00015576,64244.0,64243.0,0.58120299]
[1724618758583,0.00015576,64244.0,64243.0,0.60800003]
[1724618760288,0.00015576,64244.0,64243.0,0.56138804]
[1724618760492,0.00015576,64244.0,64243.0,0.56178804]
[1724618765286,0.00015576,64244.0,64243.0,0.20098804]
[1724618765690,0.00015576,64244.0,64243.0,0.56178804]
[1724618765989,0.0935171,64244.0,64243.0,0.20098804]
[1724618766190,0.0935171,64244.0,64243.0,0.56178804]
[1724618768092,0.00015576,64244.0,64243.0,0.56178804]
[1724618769100,0.03020407,64244.0,64243.0,0.56178804]
[1724618769797,0.03020407,64244.0,64243.0,0.55778804]
[1724618769995,0.03020407,64244.0,64243.0,0.56178804]
[1724618770196,0.03020407,64244.0,64243.0,0.20098804]
[1724618772193,0.03020407,64244.0,64243.0,0.21098804]
[1724618772898,0.00015576,64244.0,64243.0,0.21098804]
[1724618780710,0.00015576,64244.0,64243.0,0.25759683]
[1724618780901,0.0467,64248.0,64246.0,0.077786]
[1724618781212,0.0467,64248.0,64247.0,0.19626564]
[1724618781508,0.0467,64248.0,64247.0,0.27405164]
[1724618781803,0.0467,64248.0,64247.0,0.27445164]
[1724618782805,0.0266545,64252.0,64248.0,0.077784]
[1724618783108,0.0266545,64252.0,64250.0,0.09]
[1724618784101,0.0266545,64252.0,64250.0,0.0904]
[1724618785202,0.0266545,64252.0,64250.0,0.0004]
[1724618785406,0.0266545,64252.0,64250.0,0.0625877]
[1724618785602,0.0266545,64252.0,64250.0,0.0004]
[1724618790409,0.0932,64253.0,64252.0,0.07778]
[1724618790711,0.047,64253.0,64252.0,0.07778]
[1724618791306,0.047,64253.0,64252.0,0.07818]
[1724618792409,0.047,64253.0,64252.0,0.07918]
[1724618792805,0.047,64253.0,64252.0,0.50217202]
[1724618794613,0.047,64253.0,64252.0,0.52928835]
[1724618795916,0.07704485,64253.0,64252.0,0.46709633]
[1724618798011,0.11513482,64253.0,64252.0,0.46709633]
[1724618798205,0.07704485,64253.0,64252.0,0.46709633]
[1724618798805,0.11513482,64253.0,64252.0,0.47309633]
[1724618799011,0.11513482,64253.0,64252.0,0.47609633]
[1724618799212,0.07704485,64253.0,64252.0,0.47609633]
[1724618799609,0.07704485,64253.0,64252.0,0.11529633]
[1724618800016,0.07704485,64253.0,64252.0,0.11129633]
[1724618800216,0.07704485,64253.0,64252.0,0.11529633]
[1724618801217,0.07704485,64253.0,64252.0,0.10929633]
[1724618801411,0.07704485,64253.0,64252.0,0.11529633]
[1724618803116,0.047,64253.0,64252.0,0.10529633]
[1724618803420,0.047,64253.0,64252.0,0.11329633]
[1724618807121,0.124778,64253.0,64252.0,0.08618]
[1724618808219,0.124778,64253.0,64252.0,0.0084]
[1724618808920,0.124778,64253.0,64252.0,0.0044]
[1724618809120,0.124778,64253.0,64252.0,0.0014]
[1724618810817,0.124778,64253.0,64252.0,0.0004]
[1724618811029,0.15482443,64253.0,64252.0,0.0004]
[1724618811720,0.15482443,64253.0,64252.0,0.0014]
[1724618813118,0.19291543,64253.0,64252.0,0.0014]
[1724618814222,0.19291542,64253.0,64252.0,0.0014]
[1724618817423,0.19291542,64253.0,64252.0,0.0024]
[1724618818027,0.124778,64253.0,64252.0,0.0024]
[1724618818330,0.124778,64253.0,64252.0,0.0034]
[1724618818621,0.124778,64253.0,64252.0,0.0044]
[1724618821327,0.124778,64253.0,64252.0,0.0034]
[1724618821831,0.124778,64253.0,64252.0,0.0024]
[1724618822323,0.124778,64253.0,64252.0,0.04905088]
[1724618822520,0.124778,64253.0,64252.0,0.05005088]
[1724618822928,0.124778,64253.0,64252.0,0.04905088]
[1724618823225,0.077778,64253.0,64252.0,0.04705088]
[1724618823429,0.077778,64253.0,64252.0,0.05105088]
[1724618824026,0.077778,64253.0,64252.0,0.04905088]
[1724618825228,0.077778,64253.0,64252.0,0.0044]
[1724618825616,0.077778,64253.0,64252.0,0.0054]
[1724618827028,0.077778,64253.0,64252.0,0.08218]
[1724618828027,0.077778,64253.0,64252.0,0.08418]
[1724618829728,0.077778,64253.0,64252.0,0.08018]
[1724618829931,0.077778,64253.0,64252.0,0.08418]
[1724618831234,0.077778,64253.0,64252.0,0.13082825]
[1724618833025,0.077778,64253.0,64252.0,0.08418]
[1724618833026,0.10782434,64253.0,64252.0,0.08418]
[1724618834035,0.21786088,64253.0,64252.0,0.08418]
[1724618834233,0.24790722,64253.0,64252.0,0.08418]
[1724618834725,0.14591522,64253.0,64252.0,0.08418]
[1724618835329,0.10782434,64253.0,64252.0,0.08418]
[1724618835730,0.14591522,64253.0,64252.0,0.08418]
[1724618835933,0.077778,64253.0,64252.0,0.08418]
[1724618836245,0.21786088,64253.0,64252.0,0.08418]
[1724618836445,0.1701289,64253.0,64252.0,0.08418]
[1724618836738,0.0681365,64253.0,64252.0,0.08418]
[1724618836940,0.03004602,64253.0,64252.0,0.08418]
[1724618838951,0.03004602,64253.0,64252.0,0.44498]
[1724618840948,0.03004456,64253.0,64252.0,0.44498]
[1724618841149,0.10506139,64255.0,64252.0,0.50717202]
[1724618841349,0.10506139,64255.0,64254.0,0.04662806]
[1724618842047,0.10506139,64255.0,64254.0,0.04702806]
[1724618844647,0.10506139,64255.0,64254.0,0.04902806]
[1724618845148,0.18283413,64255.0,64254.0,0.04902806]
[1724618848058,0.31327746,64255.0,64254.0,0.0024]
[1724618848252,0.17319458,64255.0,64254.0,0.0024]
[1724618850955,0.17319455,64255.0,64254.0,0.0024]
[1724618851951,0.17319455,64255.0,64254.0,0.080177]
[1724618852153,0.17319455,64255.0,64254.0,0.081177]
[1724618853052,0.17319455,64255.0,64254.0,0.082177]
[1724618853762,0.17319455,64255.0,64254.0,0.079177]
[1724618853962,0.17319455,64255.0,64254.0,0.082177]
[1724618856265,0.10506139,64255.0,64254.0,0.082177]
[1724618856857,0.02728539,64255.0,64254.0,0.082177]
[1724618857053,0.07776863,64261.0,64254.0,0.94208]
[1724618857258,0.12666,64268.0,64260.0,0.51294043]
[1724618857259,0.07776863,64265.0,64260.0,0.51294043]
[1724618857465,0.0489,64268.0,64266.0,0.077763]
[1724618857466,0.12666863,64268.0,64266.0,0.077763]
[1724618857653,0.0489,64268.0,64266.0,0.12434067]
[1724618858356,0.0489,64268.0,64267.0,0.0004]
[1724618859254,0.00140001,64270.0,64267.0,0.0004]
[1724618859464,0.07776863,64277.0,64268.0,0.09]
[1724618859656,0.077745,64281.0,64276.0,0.09]
[1724618859657,0.07776863,64278.0,64276.0,0.09]
[1724618859859,0.02701879,64278.0,64276.0,0.09]
[1724618860066,0.07776863,64279.0,64276.0,0.09]
[1724618860364,0.07776863,64280.0,64276.0,0.09]